[Event "Icelandic Team-ch Kvika Leagu 2023-24"]
[Site "Reykjavik"]
[Date "2024.03.01"]
[Round "7"]
[White "Kulaots, Kaido"]
[Black "Sulypa, Oleksandr"]
[Result "1/2-1/2"]
[ECO "C84"]
[WhiteElo "2534"]
[BlackElo "2457"]
[Annotator "RC"]
[PlyCount "50"]
[EventDate "2024.02.29"]
[EventType "team-tourn"]
[EventCountry "ISL"]
[SourceTitle "playchess.com"]
[Source "ChessBase"]
[SourceQuality "1"]
[TimeControl "40/5400+30:900+30"]

1. e4 {[%emt 0:00:11]} e5 {[%emt 0:00:03]} 2. Nf3 {[%emt 0:00:45]} Nc6 {[%emt 0:00:08]} 3. Bb5 {[%emt 0:00:34]} a6 {[%emt 0:00:06]} 4. Ba4 {[%emt 0:00:06]} Nf6 {[%emt 0:00:04]} 5. O-O {[%emt 0:00:26]} Be7 {[%emt 0:00:10]} 6. d3 {[%emt 0:02:05]} b5 {[%emt 0:00:48]} 7. Bb3 {[%emt 0:00:09]} d6 {[%emt 0:00:08]} 8. a4 {[%emt 0:03:11]} Bb7 {[%emt 0:03:49]} 9. Bd2 {[%emt 0:07:43]} O-O {[%emt 0:12:29]} 10. Nc3 {[%emt 0:11:22]} Nd4 {[%emt 0:18:50]} 11. Nxd4 {[%emt 0:00:25]} exd4 {[%emt 0:00:06]} 12. Nd5 {[%emt 0:07:16]} Nxd5 {[%emt 0:07:16]} 13. exd5 {[%emt 0:00:34]} Bg5 {[%emt 0:11:55]} 14. axb5 {[%emt 0:17:16]} axb5 {[%emt 0:00:09]} 15. Rxa8 {[%emt 0:00:20]} Bxa8 {[%emt 0:00:04]} 16. Re1 {[%emt 0:01:51]} c5 {[%emt 0:22:09]} 17. dxc6 {[%emt 0:01:28]} Bxc6 {[%emt 0:00:06]} 18. Bb4 {[%emt 0:08:38]} Qf6 {[%emt 0:01:49]} 19. Qg4 {[%emt 0:01:41]} Bh6 {[%emt 0:08:58]} 20. Ra1 {[%emt 0:07:06]} Qe5 {[%emt 0:02:18]} 21. h3 {[%emt 0:09:58]} Bf4 {[%emt 0:02:02]} 22. Ra6 {[%emt 0:11:15]} Re8 {[%emt 0:04:21]} 23. Qd1 {[%emt 0:02:22]} Bb7 {[%emt 0:01:19]} 24. Rb6 {[%emt 0:00:51]} Ba8 {[%emt 0:00:19]} 25. Ra6 {[%emt 0:02:03]} h5 {[%emt 0:01:01]} 1/2-1/2

[Event "Icelandic Team-ch Kvika Leagu 2023-24"]
[Site "Reykjavik"]
[Date "2024.03.02"]
[Round "7"]
[White "Gretarsson, Hjorvar Steinn"]
[Black "Heimisson, Hilmir Freyr"]
[Result "1-0"]
[ECO "C67"]
[WhiteElo "2530"]
[BlackElo "2355"]
[Annotator "RC"]
[PlyCount "95"]
[EventDate "2024.02.29"]
[EventType "team-tourn"]
[EventCountry "ISL"]
[SourceTitle "playchess.com"]
[Source "ChessBase"]
[SourceQuality "1"]
[TimeControl "40/5400+30:900+30"]

1. e4 {[%emt 0:00:25]} e5 {[%emt 0:05:29]} 2. Nf3 {[%emt 0:00:06]} Nc6 {[%emt 0:00:33]} 3. Bb5 {[%emt 0:00:08]} Nf6 {[%emt 0:00:11]} 4. O-O {[%emt 0:00:29]} Nxe4 {[%emt 0:00:29]} 5. Re1 {[%emt 0:00:55]} Nd6 {[%emt 0:00:43]} 6. Nxe5 {[%emt 0:00:30]} Be7 {[%emt 0:00:33]} 7. Bf1 {[%emt 0:00:24]} Nxe5 {[%emt 0:00:11]} 8. Rxe5 {[%emt 0:00:06]} O-O {[%emt 0:00:11]} 9. d4 {[%emt 0:00:16]} Bf6 {[%emt 0:01:21]} 10. Re1 {[%emt 0:00:03]} Re8 {[%emt 0:02:49]} 11. Bf4 {[%emt 0:01:24]} Rxe1 {[%emt 0:09:45]} 12. Qxe1 {[%emt 0:00:02]} Ne8 {[%emt 0:00:53]} 13. Nc3 {[%emt 0:00:11]} Bxd4 {[%emt 0:06:44]} 14. Nd5 {[%emt 0:02:09]} c6 {[%emt 0:03:50]} 15. Ne7+ {[%emt 0:22:13]} Kf8 {[%emt 0:01:52]} 16. Nxc8 {[%emt 0:02:20]} Qf6 {[%emt 0:06:09]} 17. Bg3 {[%emt 0:11:18]} Rxc8 {[%emt 0:00:59]} 18. Qb4+ {[%emt 0:01:13]} d6 {[%emt 0:04:44]} 19. Qxb7 {[%emt 0:02:40]} Rc7 {[%emt 0:01:27]} 20. Qb8 {[%emt 0:03:56]} Re7 {[%emt 0:00:46]} 21. Rd1 {[%emt 0:04:45]} Bb6 {[%emt 0:01:21]} 22. c4 {[%emt 0:13:24]} g5 {[%emt 0:08:25]} 23. b4 {[%emt 0:22:47]} Bd4 {[%emt 0:16:14]} 24. Kh1 {[%emt 0:00:55]} Kg7 {[%emt 0:01:45]} 25. f3 {[%emt 0:02:11]} h5 {[%emt 0:01:58]} 26. Qc8 {[%emt 0:01:05]} c5 {[%emt 0:02:36]} 27. bxc5 {[%emt 0:01:26]} Bxc5 {[%emt 0:01:31]} 28. h3 {[%emt 0:02:07]} Nc7 {[%emt 0:02:47]} 29. Bd3 {[%emt 0:01:44]} Ne6 {[%emt 0:02:08]} 30. Qc6 {[%emt 0:02:45]} Nf4 {[%emt 0:03:15]} 31. Be4 {[%emt 0:00:20]} Re6 {[%emt 0:01:35]} 32. Qb7 {[%emt 0:01:09]} Ne2 {[%emt 0:01:03]} 33. Be1 {[%emt 0:00:40]} Re7 {[%emt 0:01:41]} 34. Qd5 {[%emt 0:00:31]} Re5 {[%emt 0:03:36]} 35. Qd3 {[%emt 0:00:17]} Nf4 {[%emt 0:00:09]} 36. Qc2 {[%emt 0:00:34]} g4 {[%emt 0:01:54]} 37. Bc3 {[%emt 0:00:35]} Qh4 {[%emt 0:00:13]} 38. Bxe5+ {[%emt 0:00:47]} dxe5 {[%emt 0:00:00]} 39. fxg4 {[%emt 0:00:31]} hxg4 {[%emt 0:00:23]} 40. Qc3 {[%emt 0:00:00]} Bd4 {[%emt 0:00:00]} 41. Qe1 {[%emt 0:06:27]} Bf2 {[%emt 0:09:04]} 42. Qc3 {[%emt 0:04:39]} Qh5 {[%emt 0:05:55]} 43. Rd7 {[%emt 0:03:59]} gxh3 {[%emt 0:07:50]} 44. g4 {[%emt 0:00:16]} Qg5 {[%emt 0:00:45]} 45. Qf3 {[%emt 0:00:18]} Bd4 {[%emt 0:00:51]} 46. Bd5 {[%emt 0:01:35]} Qg6 {[%emt 0:00:35]} 47. Rxf7+ {[%emt 0:00:16]} Kh6 {[%emt 0:00:01]} 48. Rxf4 {[%emt 0:01:23]} 1-0

[Event "Icelandic Team-ch Kvika Leagu 2023-24"]
[Site "Reykjavik"]
[Date "2024.03.01"]
[Round "7"]
[White "Olafsson, Helgi"]
[Black "Pantzar, Milton"]
[Result "0-1"]
[ECO "B12"]
[WhiteElo "2471"]
[BlackElo "2472"]
[Annotator "RC"]
[PlyCount "74"]
[EventDate "2024.02.29"]
[EventType "team-tourn"]
[EventCountry "ISL"]
[SourceTitle "playchess.com"]
[Source "ChessBase"]
[SourceQuality "1"]
[TimeControl "40/5400+30:900+30"]

1. e4 {[%emt 0:00:13]} c6 {[%emt 0:00:42]} 2. d4 {[%emt 0:00:31]} d5 {[%emt 0:00:08]} 3. e5 {[%emt 0:00:15]} Bf5 {[%emt 0:02:35]} 4. Be3 {[%emt 0:00:35]} e6 {[%emt 0:03:53]} 5. c3 {[%emt 0:02:29]} Ne7 {[%emt 0:02:58]} 6. Nd2 {[%emt 0:00:24]} Nd7 {[%emt 0:06:57]} 7. f4 {[%emt 0:01:29]} h5 {[%emt 0:06:15]} 8. Be2 {[%emt 0:04:15]} Bg6 {[%emt 0:10:43]} 9. Ngf3 {[%emt 0:01:45]} Nf5 {[%emt 0:04:54]} 10. Bf2 {[%emt 0:00:10]} c5 {[%emt 0:03:26]} 11. O-O {[%emt 0:04:10]} Rc8 {[%emt 0:08:11]} 12. a4 {[%emt 0:16:28]} a6 {[%emt 0:06:06]} 13. a5 {[%emt 0:01:44]} Be7 {[%emt 0:04:29]} 14. Qa4 {[%emt 0:13:35]} O-O {[%emt 0:02:32]} 15. b4 {[%emt 0:04:04]} cxb4 {[%emt 0:06:18]} 16. cxb4 {[%emt 0:01:12]} Nh6 {[%emt 0:02:59]} 17. Nb3 {[%emt 0:11:05]} Rc2 {[%emt 0:08:09]} 18. Ra2 {[%emt 0:06:51]} Rxa2 {[%emt 0:06:25]} 19. Qxa2 {[%emt 0:00:05]} Bxb4 {[%emt 0:00:10]} 20. Nh4 {[%emt 0:00:16]} Be4 {[%emt 0:01:35]} 21. Bxh5 {[%emt 0:01:19]} Be7 {[%emt 0:00:30]} 22. g3 {[%emt 0:01:00]} Bxh4 {[%emt 0:01:50]} 23. gxh4 {[%emt 0:00:05]} Nf5 {[%emt 0:00:44]} 24. Nd2 {[%emt 0:00:07]} Bd3 {[%emt 0:02:33]} 25. Rc1 {[%emt 0:00:13]} Nxh4 {[%emt 0:01:16]} 26. Qa3 {[%emt 0:00:12]} Bg6 {[%emt 0:01:14]} 27. Be2 {[%emt 0:02:00]} Nf5 {[%emt 0:02:18]} 28. Qb4 {[%emt 0:04:04]} Nb8 {[%emt 0:01:16]} 29. Qxb7 {[%emt 0:08:04]} Qxa5 {[%emt 0:00:43]} 30. Nb3 {[%emt 0:00:14]} Qa2 {[%emt 0:00:59]} 31. Bf1 {[%emt 0:02:00]} Kh7 {[%emt 0:01:24]} 32. Rc3 {[%emt 0:08:44]} Qb1 {[%emt 0:00:48]} 33. Nc5 {[%emt 0:00:24]} Qd1 {[%emt 0:00:45]} 34. h3 {[%emt 0:02:01]} Nxd4 {[%emt 0:00:25]} 35. Qe7 {[%emt 0:01:17]} Ne2+ {[%emt 0:00:11]} 36. Kg2 {[%emt 0:00:08]} Nxf4+ {[%emt 0:00:12]} 37. Kg3 {[%emt 0:00:08]} Qxf1 {[%emt 0:00:33]} 0-1

[Event "Icelandic Team-ch Kvika Leagu 2023-24"]
[Site "Reykjavik"]
[Date "2024.03.02"]
[Round "7"]
[White "Kjartansson, Gudmundur"]
[Black "Pultinevicius, Paulius"]
[Result "1-0"]
[ECO "A07"]
[WhiteElo "2465"]
[BlackElo "2575"]
[Annotator "RC"]
[PlyCount "99"]
[EventDate "2024.02.29"]
[EventType "team-tourn"]
[EventCountry "ISL"]
[SourceTitle "playchess.com"]
[Source "ChessBase"]
[SourceQuality "1"]
[TimeControl "40/5400+30:900+30"]

1. Nf3 {[%emt 0:00:17]} d5 {[%emt 0:00:27]} 2. g3 {[%emt 0:00:10]} Nf6 {[%emt 0:00:14]} 3. Bg2 {[%emt 0:00:04]} c6 {[%emt 0:00:05]} 4. O-O {[%emt 0:00:25]} Bf5 {[%emt 0:00:22]} 5. d3 {[%emt 0:00:17]} e6 {[%emt 0:00:17]} 6. Nh4 {[%emt 0:00:07]} Bg4 {[%emt 0:00:15]} 7. h3 {[%emt 0:00:21]} Bh5 {[%emt 0:00:07]} 8. f4 {[%emt 0:00:16]} Be7 {[%emt 0:06:12]} 9. g4 {[%emt 0:00:19]} Bg6 {[%emt 0:05:39]} 10. e3 {[%emt 0:00:39]} Nfd7 {[%emt 0:07:37]} 11. Nxg6 {[%emt 0:03:58]} hxg6 {[%emt 0:00:50]} 12. Nd2 {[%emt 0:01:50]} a5 {[%emt 0:10:51]} 13. a4 {[%emt 0:03:46]} Qc7 {[%emt 0:00:29]} 14. d4 {[%emt 0:09:13]} Na6 {[%emt 0:08:46]} 15. c3 {[%emt 0:11:41]} Nb6 {[%emt 0:05:11]} 16. Qe2 {[%emt 0:06:40]} Rd8 {[%emt 0:05:07]} 17. Nf3 {[%emt 0:06:22]} Nb8 {[%emt 0:01:35]} 18. Bd2 {[%emt 0:12:27]} N8d7 {[%emt 0:00:18]} 19. Be1 {[%emt 0:01:15]} Nc4 {[%emt 0:01:17]} 20. Ng5 {[%emt 0:08:19]} Qb6 {[%emt 0:05:09]} 21. b4 {[%emt 0:05:49]} O-O {[%emt 0:06:00]} 22. h4 {[%emt 0:01:03]} Rfe8 {[%emt 0:09:47]} 23. Nf3 {[%emt 0:09:11]} Ra8 {[%emt 0:00:25]} 24. Nd2 {[%emt 0:02:25]} Nxd2 {[%emt 0:05:55]} 25. Bxd2 {[%emt 0:00:06]} Qa6 {[%emt 0:01:50]} 26. Qxa6 {[%emt 0:04:17]} Rxa6 {[%emt 0:00:14]} 27. b5 {[%emt 0:00:51]} Ra7 {[%emt 0:03:03]} 28. Rfb1 {[%emt 0:07:08]} Bxh4 {[%emt 0:07:32]} 29. g5 {[%emt 0:02:10]} Nb6 {[%emt 0:00:46]} 30. Bf1 {[%emt 0:00:07]} Rc8 {[%emt 0:02:05]} 31. Kg2 {[%emt 0:01:53]} f6 {[%emt 0:00:46]} 32. Kh3 {[%emt 0:00:08]} fxg5 {[%emt 0:02:12]} 33. Kg4 {[%emt 0:00:04]} c5 {[%emt 0:00:14]} 34. fxg5 {[%emt 0:00:34]} Bf2 {[%emt 0:00:08]} 35. Bd3 {[%emt 0:00:45]} e5 {[%emt 0:01:03]} 36. dxc5 {[%emt 0:01:53]} Nd7 {[%emt 0:00:13]} 37. c6 {[%emt 0:01:10]} Nb6 {[%emt 0:01:22]} 38. Rf1 {[%emt 0:00:40]} e4 {[%emt 0:00:20]} 39. Bc2 {[%emt 0:00:46]} Rf8 {[%emt 0:00:18]} 40. c7 {[%emt 0:00:00]} Raa8 {[%emt 0:00:00]} 41. c4 {[%emt 0:06:01]} Rf3 {[%emt 0:15:32]} 42. cxd5 {[%emt 0:03:48]} Nc4 {[%emt 0:00:27]} 43. Rxf2 {[%emt 0:01:39]} Rxf2 {[%emt 0:01:34]} 44. Bb3 {[%emt 0:01:38]} Nxd2 {[%emt 0:02:09]} 45. d6+ {[%emt 0:00:34]} Nxb3 {[%emt 0:00:06]} 46. d7 {[%emt 0:00:35]} Rff8 {[%emt 0:00:26]} 47. Rd1 {[%emt 0:02:02]} Rad8 {[%emt 0:01:44]} 48. Rf1 {[%emt 0:00:27]} Rxd7 {[%emt 0:01:58]} 49. Rxf8+ {[%emt 0:00:06]} Kxf8 {[%emt 0:00:05]} 50. c8=Q+ {[%emt 0:00:08]} 1-0

[Event "Icelandic Team-ch Kvika Leagu 2023-24"]
[Site "Reykjavik"]
[Date "2024.03.02"]
[Round "7"]
[White "Hjartarson, Johann"]
[Black "Stefansson, Vignir Vatnar"]
[Result "0-1"]
[ECO "E57"]
[WhiteElo "2460"]
[BlackElo "2464"]
[Annotator "RC"]
[PlyCount "150"]
[EventDate "2024.02.29"]
[EventType "team-tourn"]
[EventCountry "ISL"]
[SourceTitle "playchess.com"]
[Source "ChessBase"]
[SourceQuality "1"]
[TimeControl "40/5400+30:900+30"]

1. c4 {[%emt 0:01:17]} e6 {[%emt 0:01:56]} 2. Nc3 {[%emt 0:00:23]} d5 {[%emt 0:00:05]} 3. d4 {[%emt 0:00:08]} Nf6 {[%emt 0:00:03]} 4. Bg5 {[%emt 0:00:10]} Be7 {[%emt 0:02:31]} 5. e3 {[%emt 0:01:32]} h6 {[%emt 0:00:08]} 6. Bh4 {[%emt 0:00:17]} O-O {[%emt 0:00:07]} 7. Nf3 {[%emt 0:00:07]} dxc4 {[%emt 0:00:10]} 8. Bxc4 {[%emt 0:00:24]} c5 {[%emt 0:00:05]} 9. O-O {[%emt 0:04:43]} cxd4 {[%emt 0:03:19]} 10. exd4 {[%emt 0:00:00]} Nc6 {[%emt 0:00:09]} 11. a3 {[%emt 0:02:01]} Nh5 {[%emt 0:00:15]} 12. Bxe7 {[%emt 0:00:40]} Nxe7 {[%emt 0:00:07]} 13. Ne5 {[%emt 0:01:49]} Nf6 {[%emt 0:01:12]} 14. Qd3 {[%emt 0:00:53]} Bd7 {[%emt 0:03:14]} 15. Rac1 {[%emt 0:03:55]} Bc6 {[%emt 0:01:19]} 16. Rfd1 {[%emt 0:00:52]} Bd5 {[%emt 0:01:41]} 17. Nxd5 {[%emt 0:06:14]} Nexd5 {[%emt 0:01:15]} 18. Ba2 {[%emt 0:03:08]} Qd6 {[%emt 0:05:05]} 19. b4 {[%emt 0:04:07]} Rac8 {[%emt 0:02:19]} 20. Rc5 {[%emt 0:01:23]} b6 {[%emt 0:08:21]} 21. Rc4 {[%emt 0:00:53]} Rxc4 {[%emt 0:02:03]} 22. Qxc4 {[%emt 0:02:15]} Ne7 {[%emt 0:00:45]} 23. Re1 {[%emt 0:10:50]} Nfd5 {[%emt 0:02:01]} 24. Qa6 {[%emt 0:05:22]} Qc7 {[%emt 0:01:58]} 25. Bc4 {[%emt 0:01:55]} Rc8 {[%emt 0:02:40]} 26. g3 {[%emt 0:06:35]} Qb8 {[%emt 0:09:10]} 27. Bf1 {[%emt 0:05:48]} Rc2 {[%emt 0:01:29]} 28. Bh3 {[%emt 0:06:53]} Qc7 {[%emt 0:02:18]} 29. Qa4 {[%emt 0:01:10]} Nf6 {[%emt 0:06:52]} 30. Bg2 {[%emt 0:13:46]} Rd2 {[%emt 0:06:38]} 31. b5 {[%emt 0:02:25]} g6 {[%emt 0:13:51]} 32. h3 {[%emt 0:06:01]} Qc2 {[%emt 0:03:15]} 33. Qxc2 {[%emt 0:00:00]} Rxc2 {[%emt 0:00:05]} 34. Ra1 {[%emt 0:01:51]} Nfd5 {[%emt 0:01:13]} 35. a4 {[%emt 0:00:42]} Rd2 {[%emt 0:02:21]} 36. Bxd5 {[%emt 0:01:28]} Nxd5 {[%emt 0:02:11]} 37. Nc6 {[%emt 0:00:35]} Nc3 {[%emt 0:00:06]} 38. Nxa7 {[%emt 0:01:09]} Rxd4 {[%emt 0:00:40]} 39. a5 {[%emt 0:00:44]} bxa5 {[%emt 0:00:06]} 40. Rxa5 {[%emt 0:00:00]} Rb4 {[%emt 0:00:00]} 41. Ra3 {[%emt 0:01:05]} Ne4 {[%emt 0:04:15]} 42. Ra2 {[%emt 0:01:45]} g5 {[%emt 0:01:21]} 43. Rc2 {[%emt 0:00:24]} Kg7 {[%emt 0:01:02]} 44. Kg2 {[%emt 0:00:13]} Kg6 {[%emt 0:00:53]} 45. Re2 {[%emt 0:01:37]} Nc3 {[%emt 0:00:41]} 46. Rc2 {[%emt 0:00:21]} Nxb5 {[%emt 0:01:32]} 47. Nxb5 {[%emt 0:00:13]} Rxb5 {[%emt 0:00:04]} 48. Rc6 {[%emt 0:00:37]} Rb4 {[%emt 0:00:44]} 49. Ra6 {[%emt 0:00:05]} h5 {[%emt 0:00:03]} 50. Rc6 {[%emt 0:00:23]} Re4 {[%emt 0:04:03]} 51. Ra6 {[%emt 0:00:12]} f5 {[%emt 0:00:03]} 52. Rb6 {[%emt 0:00:32]} Kf6 {[%emt 0:00:06]} 53. Ra6 {[%emt 0:00:06]} h4 {[%emt 0:00:10]} 54. gxh4 {[%emt 0:00:37]} Rxh4 {[%emt 0:00:10]} 55. Rb6 {[%emt 0:00:09]} Rd4 {[%emt 0:00:32]} 56. Ra6 {[%emt 0:00:12]} Rd3 {[%emt 0:00:39]} 57. Rb6 {[%emt 0:00:09]} Ke7 {[%emt 0:04:22]} 58. Ra6 {[%emt 0:00:13]} Rd6 {[%emt 0:01:45]} 59. Ra5 {[%emt 0:00:14]} Kf6 {[%emt 0:00:09]} 60. Rb5 {[%emt 0:00:05]} e5 {[%emt 0:00:11]} 61. Ra5 {[%emt 0:00:14]} e4 {[%emt 0:00:18]} 62. Ra8 {[%emt 0:03:23]} Rd2 {[%emt 0:02:42]} 63. Kg1 {[%emt 0:00:36]} Ke5 {[%emt 0:03:26]} 64. Re8+ {[%emt 0:00:14]} Kf4 {[%emt 0:01:47]} 65. Rf8 {[%emt 0:00:07]} Rd3 {[%emt 0:02:50]} 66. Kg2 {[%emt 0:00:03]} e3 {[%emt 0:00:58]} 67. fxe3+ {[%emt 0:00:21]} Rxe3 {[%emt 0:00:03]} 68. Rg8 {[%emt 0:03:15]} Rg3+ {[%emt 0:01:00]} 69. Kh2 {[%emt 0:00:03]} Kf3 {[%emt 0:00:49]} 70. Ra8 {[%emt 0:01:56]} Rg2+ {[%emt 0:00:08]} 71. Kh1 {[%emt 0:00:02]} Re2 {[%emt 0:00:30]} 72. Rg8 {[%emt 0:00:12]} g4 {[%emt 0:04:28]} 73. hxg4 {[%emt 0:00:06]} f4 {[%emt 0:00:01]} 74. Kg1 {[%emt 0:10:53]} Kg3 {[%emt 0:00:21]} 75. Kf1 {[%emt 0:00:03]} f3 {[%emt 0:00:08]} 0-1

[Event "Icelandic Team-ch Kvika Leagu 2023-24"]
[Site "Reykjavik"]
[Date "2024.03.02"]
[Round "7"]
[White "Olsen, Filip Boe"]
[Black "Stefansson, Hannes"]
[Result "0-1"]
[ECO "E48"]
[WhiteElo "2456"]
[BlackElo "2481"]
[Annotator "RC"]
[PlyCount "90"]
[EventDate "2024.02.29"]
[EventType "team-tourn"]
[EventCountry "ISL"]
[SourceTitle "playchess.com"]
[Source "ChessBase"]
[SourceQuality "1"]
[TimeControl "40/5400+30:900+30"]

1. d4 {[%emt 0:00:18]} Nf6 {[%emt 0:00:14]} 2. c4 {[%emt 0:00:08]} e6 {[%emt 0:00:11]} 3. Nc3 {[%emt 0:00:17]} Bb4 {[%emt 0:00:31]} 4. e3 {[%emt 0:00:10]} c5 {[%emt 0:01:01]} 5. Bd3 {[%emt 0:04:17]} d5 {[%emt 0:01:44]} 6. cxd5 {[%emt 0:02:05]} Nxd5 {[%emt 0:05:16]} 7. Nge2 {[%emt 0:00:39]} cxd4 {[%emt 0:02:30]} 8. exd4 {[%emt 0:00:22]} Nc6 {[%emt 0:02:51]} 9. O-O {[%emt 0:01:33]} O-O {[%emt 0:00:23]} 10. a3 {[%emt 0:00:46]} Bd6 {[%emt 0:02:33]} 11. Re1 {[%emt 0:02:04]} Re8 {[%emt 0:07:19]} 12. Qc2 {[%emt 0:08:54]} h6 {[%emt 0:03:40]} 13. Nxd5 {[%emt 0:11:31]} exd5 {[%emt 0:00:27]} 14. Be3 {[%emt 0:01:12]} Be6 {[%emt 0:03:09]} 15. Rac1 {[%emt 0:08:21]} Qh4 {[%emt 0:05:31]} 16. g3 {[%emt 0:05:59]} Qf6 {[%emt 0:01:16]} 17. Qd2 {[%emt 0:06:40]} Rac8 {[%emt 0:14:08]} 18. Nc3 {[%emt 0:03:16]} Bc7 {[%emt 0:05:17]} 19. Na4 {[%emt 0:09:02]} Bh3 {[%emt 0:01:06]} 20. Bf1 {[%emt 0:01:29]} Bxf1 {[%emt 0:00:08]} 21. Rxf1 {[%emt 0:00:27]} Ne7 {[%emt 0:03:36]} 22. Nc5 {[%emt 0:05:22]} b6 {[%emt 0:01:03]} 23. Nd3 {[%emt 0:01:30]} Nf5 {[%emt 0:04:46]} 24. Nb4 {[%emt 0:02:48]} Qe6 {[%emt 0:01:50]} 25. Rfe1 {[%emt 0:02:36]} Bd6 {[%emt 0:05:08]} 26. Rxc8 {[%emt 0:03:08]} Rxc8 {[%emt 0:00:08]} 27. Na2 {[%emt 0:01:24]} b5 {[%emt 0:03:35]} 28. Qd3 {[%emt 0:02:53]} a6 {[%emt 0:04:49]} 29. Nc3 {[%emt 0:03:07]} b4 {[%emt 0:02:40]} 30. Bd2 {[%emt 0:01:58]} Qd7 {[%emt 0:02:31]} 31. Nxd5 {[%emt 0:00:40]} Rb8 {[%emt 0:02:33]} 32. Nxb4 {[%emt 0:02:30]} a5 {[%emt 0:00:32]} 33. Nc6 {[%emt 0:03:51]} Qxc6 {[%emt 0:04:40]} 34. Qxf5 {[%emt 0:00:11]} Rxb2 {[%emt 0:00:05]} 35. Rc1 {[%emt 0:00:55]} Qb7 {[%emt 0:00:13]} 36. Rc8+ {[%emt 0:01:14]} Bf8 {[%emt 0:00:20]} 37. Bc1 {[%emt 0:02:02]} Re2 {[%emt 0:00:47]} 38. Kf1 {[%emt 0:01:59]} Re6 {[%emt 0:00:41]} 39. Rxf8+ {[%emt 0:01:33]} Kxf8 {[%emt 0:00:07]} 40. Be3 {[%emt 0:00:00]} a4 {[%emt 0:00:00]} 41. Qh7 {[%emt 0:03:43]} Rb6 {[%emt 0:07:48]} 42. Qh8+ {[%emt 0:02:09]} Ke7 {[%emt 0:00:10]} 43. Qxg7 {[%emt 0:00:08]} Qh1+ {[%emt 0:02:16]} 44. Ke2 {[%emt 0:00:01]} Rb2+ {[%emt 0:00:20]} 45. Kd3 {[%emt 0:03:36]} Qb1+ {[%emt 0:00:27]} 0-1

[Event "Icelandic Team-ch Kvika Leagu 2023-24"]
[Site "Reykjavik"]
[Date "2024.03.02"]
[Round "7"]
[White "Nagy, Gabor"]
[Black "Gislason, Gudmundur"]
[Result "1-0"]
[ECO "E67"]
[WhiteElo "2436"]
[BlackElo "2266"]
[Annotator "ChessBase"]
[PlyCount "101"]
[EventDate "2024.02.29"]
[EventType "team-tourn"]
[EventCountry "ISL"]
[SourceTitle "playchess.com"]
[Source "ChessBase"]
[SourceQuality "1"]
[TimeControl "40/5400+30:900+30"]

1. c4 {[%emt 0:00:44]} Nf6 {[%emt 0:00:06]} 2. Nc3 {[%emt 0:00:22]} g6 {[%emt 0:00:04]} 3. g3 {[%emt 0:00:17]} Bg7 {[%emt 0:00:05]} 4. Bg2 {[%emt 0:00:06]} O-O {[%emt 0:00:04]} 5. d4 {[%emt 0:00:11]} d6 {[%emt 0:00:07]} 6. Nf3 {[%emt 0:00:13]} Nbd7 {[%emt 0:00:05]} 7. O-O {[%emt 0:01:16]} c6 {[%emt 0:00:04]} 8. e4 {[%emt 0:02:23]} Qa5 {[%emt 0:07:04]} 9. h3 {[%emt 0:09:31]} Nb6 {[%emt 0:09:10]} 10. Nd2 {[%emt 0:04:58]} e5 {[%emt 0:03:28]} 11. d5 {[%emt 0:05:24]} Bd7 {[%emt 0:09:05]} 12. dxc6 {[%emt 0:10:54]} bxc6 {[%emt 0:00:24]} 13. Nb3 {[%emt 0:00:53]} Qa6 {[%emt 0:02:59]} 14. c5 {[%emt 0:02:07]} dxc5 {[%emt 0:00:06]} 15. Nxc5 {[%emt 0:00:13]} Qc8 {[%emt 0:00:05]} 16. Kh2 {[%emt 0:00:45]} Be6 {[%emt 0:04:31]} 17. b3 {[%emt 0:02:24]} Re8 {[%emt 0:02:03]} 18. Be3 {[%emt 0:01:01]} Qc7 {[%emt 0:09:36]} 19. Qe2 {[%emt 0:00:50]} Rad8 {[%emt 0:03:02]} 20. Nxe6 {[%emt 0:02:23]} Rxe6 {[%emt 0:00:08]} 21. Rfc1 {[%emt 0:01:06]} Qb7 {[%emt 0:06:50]} 22. Rab1 {[%emt 0:01:00]} Bf8 {[%emt 0:08:14]} 23. b4 {[%emt 0:01:00]} Rc8 {[%emt 0:14:24]} 24. a4 {[%emt 0:01:35]} h5 {[%emt 0:03:44]} 25. Bf1 {[%emt 0:02:54]} Rc7 {[%emt 0:09:18]} 26. Qf3 {[%emt 0:03:28]} Ne8 {[%emt 0:01:09]} 27. a5 {[%emt 0:00:23]} Nd7 {[%emt 0:01:08]} 28. b5 {[%emt 0:03:42]} cxb5 {[%emt 0:02:04]} 29. Bxb5 {[%emt 0:00:21]} Qc8 {[%emt 0:02:28]} 30. Nd5 {[%emt 0:01:51]} Rxc1 {[%emt 0:00:08]} 31. Rxc1 {[%emt 0:00:12]} Qb7 {[%emt 0:00:15]} 32. Qe2 {[%emt 0:01:51]} a6 {[%emt 0:00:38]} 33. Ba4 {[%emt 0:00:27]} Ndf6 {[%emt 0:02:09]} 34. Qc2 {[%emt 0:01:01]} h4 {[%emt 0:01:16]} 35. g4 {[%emt 0:03:29]} Nxd5 {[%emt 0:00:56]} 36. exd5 {[%emt 0:00:02]} Qxd5 {[%emt 0:00:35]} 37. Bb3 {[%emt 0:00:10]} Qd6 {[%emt 0:00:22]} 38. Bxe6 {[%emt 0:00:31]} e4+ {[%emt 0:00:10]} 39. Kg1 {[%emt 0:03:31]} Qxe6 {[%emt 0:00:07]} 40. Qc8 {[%emt 0:00:00]} Qe5 {[%emt 0:00:00]} 41. Rd1 {[%emt 0:01:02]} Nd6 {[%emt 0:04:29]} 42. Qxa6 {[%emt 0:00:22]} f5 {[%emt 0:01:19]} 43. Bd4 {[%emt 0:01:44]} Qd5 {[%emt 0:04:11]} 44. Rd2 {[%emt 0:09:28]} fxg4 {[%emt 0:03:31]} 45. Be3 {[%emt 0:00:10]} Qe6 {[%emt 0:02:25]} 46. Qc6 {[%emt 0:01:09]} Qf6 {[%emt 0:02:24]} 47. Qd5+ {[%emt 0:01:15]} Kh7 {[%emt 0:00:20]} 48. Bd4 {[%emt 0:06:11]} Qf3 {[%emt 0:01:17]} 49. Qe5 {[%emt 0:00:10]} Nf7 {[%emt 0:00:24]} 50. Qf6 {[%emt 0:00:07]} Bb4 {[%emt 0:00:51]} 51. Qg7# {[%emt 0:00:07]} 1-0